[Event "29th Bosnjaci Open 2025"]
[Site "Bosnjaci"]
[Date "2025.01.04"]
[Round "2.5"]
[White "Fercec, Nenad"]
[Black "Maravic, Ivan"]
[Result "1/2-1/2"]
[ECO "C65"]
[WhiteElo "2382"]
[BlackElo "2074"]
[Annotator "TA"]
[PlyCount "134"]
[EventDate "2025.01.04"]
[EventType "swiss"]
[EventCountry "CRO"]
[SourceTitle "playchess.com"]
[Source "ChessBase"]
[SourceQuality "1"]
[TimeControl "5400+30"]

{[%evp 25,134,22,136,136,189,112,207,90,97,79,70,66,58,27,67,53,123,66,322,312,295,311,291,252,247,63,50,41,36,44,50,35,58,39,33,39,35,37,41,35,28,28,36,29,37,56,46,0,0,0,0,0,0,-83,0,0,0,0,0,0,0,0,0,0,0,0,0,0,0,0,0,0,0,0,0,0,0,0,0,0,0,0,0,0,0,0,0,0,0,0,0,0,0,0,0,0,0,0,0,0,2,0,0,0,0,0,0,0,0,0,0]} 1. e4 {[%emt 0:00:19]} e5 {[%emt 0:06:30]} 2. Nf3 {[%emt 0:00:09]} Nc6 {[%emt 0:00:11]} 3. Bb5 {[%emt 0:00:11]} Nf6 {[%emt 0:00:13]} 4. d3 {[%emt 0:00:32]} Bc5 {[%emt 0:00:09]} 5. Bxc6 {[%emt 0:01:54]} dxc6 {[%emt 0:00:10]} 6. Qe2 {[%emt 0:00:15]} Bd6 {[%emt 0:01:40]} 7. Nbd2 {[%emt 0:01:02]} Nd7 {[%emt 0:11:25]} 8. Nc4 {[%emt 0:01:08]} Qe7 {[%emt 0:00:51]} 9. Bd2 {[%emt 0:17:56]} Nf8 {[%emt 0:07:53]} 10. d4 {[%emt 0:11:18]} exd4 {[%emt 0:11:14]} 11. Nxd4 {[%emt 0:00:43]} Bd7 {[%emt 0:01:52]} 12. O-O-O {[%emt 0:09:40]} O-O-O {[%emt 0:05:26]} 13. Qf3 {[%emt 0:18:31]} Be6 {[%emt 0:12:55]} (13... Bc5 $11 14. Nb3 h5) 14. Nxd6+ $16 {[%emt 0:10:14]} cxd6 {[%emt 0:01:31]} (14... Rxd6 $16 {was called for.} 15. Qc3 h6) 15. Qg3 {[%emt 0:02:34]} (15. Qa3 $18) 15... f6 {[%emt 0:08:00]} (15... Ng6 $16 16. Bc3 Qd7) 16. f4 {[%emt 0:02:27]} (16. Qa3 $18 {and White stays clearly on top.}) 16... Nd7 $16 {[%emt 0:04:19]} 17. Qa3 {[%emt 0:00:15]} Kb8 {[%emt 0:03:43]} 18. Be3 {[%emt 0:01:18]} Nb6 $1 {[%emt 0:02:26]} 19. Bf2 {[%emt 0:03:26]} Rhe8 {[%emt 0:02:31]} 20. Rhe1 {[%emt 0:01:09]} Qf7 {[%emt 0:04:46] [#]} (20... Bg4 $14) 21. b3 {[%emt 0:01:34]} (21. f5 $1 $16 Bc4 22. Bg3) 21... d5 $2 {[%emt 0:05:42][%mdl 8192]} (21... Nc8 $14) 22. f5 $18 {[%emt 0:00:23]} Bc8 {[%emt 0:00:19]} 23. exd5 {[%emt 0:07:22]} Rxe1 {[%emt 0:01:26]} 24. Rxe1 {[%emt 0:01:30]} Qxd5 {[%emt 0:01:01]} 25. Bg3+ $2 {[%emt 0:00:29]} (25. Qe7 $18 {Bg3+ is the strong threat.} Ka8 26. c4 (26. Qxg7 c5 $16) 26... Nxc4 27. bxc4 Qxc4+ 28. Nc2) 25... Ka8 $14 {[%emt 0:00:05]} 26. Ne6 {[%emt 0:00:09]} Bxe6 {[%emt 0:02:09]} 27. fxe6 {[%emt 0:00:06]} Qd4 $1 {[%emt 0:01:05]} 28. Qb2 $1 {[%emt 0:03:08]} Qd2+ {[%emt 0:01:02]} 29. Kb1 {[%emt 0:00:05]} Nd5 {[%emt 0:00:35]} 30. e7 {[%emt 0:00:38]} Re8 {[%emt 0:00:17]} 31. c4 {[%emt 0:00:48]} Nc3+ $1 {[%emt 0:01:28]} 32. Ka1 {[%emt 0:00:41]} Qd3 $1 {[%emt 0:00:28]} 33. Qc1 $1 {[%emt 0:01:43]} Qd4 {[%emt 0:01:52]} 34. Qe3 {[%emt 0:01:23]} Nb5+ {[%emt 0:01:30]} 35. Qxd4 $1 {[%emt 0:00:55]} (35. Kb1 Na3+ 36. Kc1 Qa1+ 37. Kd2 Qb2+ (37... Qxa2+ 38. Kc3 $14) 38. Kd3 Nc2 $19 (38... Qxa2 39. Kc3 $11)) 35... Nxd4 {[%emt 0:00:01]} 36. Rd1 {[%emt 0:00:39]} (36. Kb2 $14 {is more appropriate.}) 36... c5 $11 {[%emt 0:00:41]} 37. Bd6 {[%emt 0:00:15]} b6 $1 {[%emt 0:00:43]} 38. b4 $1 {[%emt 0:00:03]} Nc2+ $1 {[%emt 0:00:40]} 39. Kb2 {[%emt 0:00:19]} (39. Kb1 $1 $11 Nxb4 40. Bxc5) 39... Nxb4 {[%emt 0:00:01]} ({Black should try} 39... Ne3 $17 40. Rc1 Kb7) 40. Bxc5 $1 $11 {[%emt 0:00:14]} Nc6 {[%emt 0:00:31]} 41. Ba3 {[%emt 0:00:10]} Kb8 {[%emt 0:00:55]} (41... Nxe7 $2 42. Re1 $18) 42. Rd3 {[%emt 0:01:09]} Kc8 {[%emt 0:00:30]} (42... Nxe7 $2 {perishes.} 43. Re3 $18) 43. Rh3 {[%emt 0:00:15]} ({Weaker is} 43. Rg3 Kd7 $16) 43... Nxe7 {[%emt 0:00:27]} 44. Rxh7 {[%emt 0:00:10]} Nf5 {[%emt 0:00:17]} 45. g4 {[%emt 0:00:12]} Re2+ {[%emt 0:00:21]} 46. Kb1 {[%emt 0:00:39]} Ne3 {[%emt 0:00:33]} 47. Rxg7 {[%emt 0:00:51]} Rxh2 {[%emt 0:00:48]} 48. Bc1 {[%emt 0:00:35]} Nxc4 {[%emt 0:00:26]} 49. Rxa7 {[%emt 0:00:19]} Ne5 {[%emt 0:00:32]} 50. g5 {[%emt 0:01:01]} fxg5 {[%emt 0:00:36]} 51. Bxg5 {[%emt 0:00:04]} Rh1+ {[%emt 0:00:19]} 52. Kc2 {[%emt 0:00:10]} Nc6 {[%emt 0:00:20]} 53. Rf7 {[%emt 0:00:13]} Rh5 {[%emt 0:00:57]} 54. Bf4 {[%emt 0:00:53]} Rc5+ {[%emt 0:00:04]} 55. Kb3 {[%emt 0:01:02]} Rb5+ {[%emt 0:00:52]} 56. Kc3 {[%emt 0:00:15]} Rc5+ {[%emt 0:00:12]} 57. Kd2 {[%emt 0:00:04]} Na5 {[%emt 0:00:51]} 58. Kd3 {[%emt 0:00:15]} Nc6 {[%emt 0:00:31]} 59. Ke4 {[%emt 0:00:42]} Na5 {[%emt 0:00:29]} 60. Bd6 {[%emt 0:01:22]} Rh5 {[%emt 0:00:34]} 61. Be5 {[%emt 0:00:19]} Rh4+ {[%emt 0:00:20]} 62. Kd5 {[%emt 0:00:06]} Rc4 {[%emt 0:00:33]} 63. a3 {[%emt 0:03:12]} Rc5+ {[%emt 0:00:16]} 64. Ke6 {[%emt 0:00:07]} Rc6+ {[%emt 0:00:35]} 65. Kd5 {[%emt 0:00:08]} Rc5+ {[%emt 0:00:04]} 66. Ke6 {[%emt 0:00:04]} Rc6+ {[%emt 0:00:04]} 67. Kd5 {[%emt 0:00:03]} Rc5+ {[%emt 0:00:05]} 1/2-1/2

[Event "29th Bosnjaci Open 2025"]
[Site "Bosnjaci"]
[Date "2025.01.04"]
[Round "2.6"]
[White "Petricevic, Mateo"]
[Black "Kovacevic, Blazimir"]
[Result "0-1"]
[ECO "D02"]
[WhiteElo "2060"]
[BlackElo "2379"]
[Annotator "TA"]
[PlyCount "68"]
[EventDate "2025.01.04"]
[EventType "swiss"]
[EventCountry "CRO"]
[SourceTitle "playchess.com"]
[Source "ChessBase"]
[SourceQuality "1"]
[TimeControl "5400+30"]

{[%evp 11,68,3,13,6,13,-12,-1,-56,-43,-75,-72,-78,-76,-76,-68,-85,-75,-93,-68,-110,-99,-100,-82,-126,-125,-138,-139,-148,-139,-140,-132,-177,-145,-152,-106,-160,-141,-123,-122,-186,-202,-256,-245,-313,-321,-320,-309,-353,-328,-335,-339,-443,-348,-788,-814,-927,-892,-29989,-29990]} 1. d4 {[%emt 0:00:03]} e6 {[%emt 0:00:16]} 2. Nf3 {[%emt 0:00:40]} c5 {[%emt 0:00:45]} 3. g3 {[%emt 0:07:03]} cxd4 {[%emt 0:00:59]} 4. Nxd4 {[%emt 0:01:40]} d5 {[%emt 0:01:14]} 5. Bg2 {[%emt 0:01:45]} Nf6 {[%emt 0:00:37]} 6. O-O {[%emt 0:01:10]} e5 {[%emt 0:06:04]} 7. Nf3 {[%emt 0:09:20]} Nc6 {[%emt 0:00:39]} 8. Bg5 {[%emt 0:12:34][%cal Oe2e4]} Be7 {[%emt 0:02:59]} 9. c3 {[%emt 0:05:24]} (9. c4 $11) 9... O-O $15 {[%emt 0:00:50]} 10. Nbd2 {[%emt 0:00:57]} Be6 {[%emt 0:04:32]} 11. e3 {[%emt 0:07:21]} h6 {[%emt 0:02:47]} 12. Bxf6 {[%emt 0:00:08]} Bxf6 {[%emt 0:00:04]} 13. Qe2 {[%emt 0:05:53]} Qb6 {[%emt 0:02:24]} 14. b3 {[%emt 0:10:07]} Rad8 {[%emt 0:02:26]} 15. Rac1 {[%emt 0:03:15]} Rfe8 {[%emt 0:03:35]} 16. Rfe1 {[%emt 0:05:50]} Be7 {[%emt 0:10:12]} 17. e4 {[%emt 0:10:33]} dxe4 {[%emt 0:01:24]} 18. Nxe4 {[%emt 0:06:28]} f5 {[%emt 0:00:20]} 19. Ned2 {[%emt 0:00:18][%cal Od2c4]} e4 {[%emt 0:01:40]} 20. Nc4 {[%emt 0:00:33] Wards off Ba3} Qc5 {[%emt 0:07:19]} 21. Nfd2 {[%emt 0:01:08]} Bg5 {[%emt 0:03:53] White is weak on the dark squares} 22. Rc2 {[%emt 0:03:04]} Bxd2 {[%emt 0:15:24]} (22... a6 $142 23. h4 Bxd2 24. Rxd2 b5) 23. Nxd2 {[%emt 0:00:18]} (23. Rxd2 $142 Bxc4 24. bxc4) 23... Rd3 {[%emt 0:12:12] Hoping for ...Nd4.} 24. Nf1 {[%emt 0:02:02]} Rxc3 {[%emt 0:01:20] Black has more active pieces.} 25. Rd2 {[%emt 0:00:55]} (25. Rxc3 $17 Qxc3 26. g4) 25... Nd4 $19 {[%emt 0:04:49]} 26. Qh5 {[%emt 0:01:40]} Bf7 {[%emt 0:01:11]} 27. Qd1 {[%emt 0:01:16] [#]} Nc2 {[%emt 0:01:26]} 28. Ree2 {[%emt 0:00:59]} Nb4 {[%emt 0:00:16] ...Rc1 is the strong threat.} 29. Rd8 {[%emt 0:00:50]} Nd3 {[%emt 0:01:11]} 30. Rxe8+ {[%emt 0:00:20]} Bxe8 {[%emt 0:00:04]} 31. Re3 {[%emt 0:01:30]} Rc1 {[%emt 0:01:41]} 32. Qe2 {[%emt 0:00:46]} (32. Rxd3 exd3 (32... Rxd1 $2 33. Rxd1 Bc6 34. Ne3 $19) 33. Qxd3) 32... Rc2 {[%emt 0:00:55]} 33. Qd1 {[%emt 0:00:36]} Rxf2 {[%emt 0:01:31]} 34. b4 {[%emt 0:00:17] [#]} Rxf1+ $1 {[%emt 0:00:31] Weighted Error Value: White=0.69/Black=0.10 (very precise) .  Mistake:       	White=4     	Black=1      Inaccurate:     	White=5     	---        OK:         	White=8     	Black=14     Best:        	---       	Black=1} 0-1

[Event "29th Bosnjaci Open 2025"]
[Site "Bosnjaci"]
[Date "2025.01.04"]
[Round "2.7"]
[White "Muratovic, Efim"]
[Black "Babler, Jan"]
[Result "1-0"]
[ECO "E06"]
[WhiteElo "2322"]
[BlackElo "2059"]
[Annotator "TA"]
[PlyCount "77"]
[EventDate "2025.01.04"]
[EventType "swiss"]
[EventCountry "CRO"]
[SourceTitle "playchess.com"]
[Source "ChessBase"]
[SourceQuality "1"]
[TimeControl "5400+30"]

{[%evp 12,77,15,13,24,20,36,2,21,20,36,37,99,81,91,65,77,75,77,77,87,70,65,68,74,61,90,85,86,79,81,53,86,83,93,72,71,66,86,68,89,100,89,60,72,47,94,38,283,271,263,135,215,154,201,88,532,529,526,526,847,811,838,830,29998,29999,29999,29997]} 1. Nf3 {[%emt 0:01:55]} d5 {[%emt 0:00:21]} 2. d4 {[%emt 0:00:19]} Nf6 {[%emt 0:02:27]} 3. g3 {[%emt 0:00:51]} e6 {[%emt 0:00:15]} 4. Bg2 {[%emt 0:00:06]} Be7 {[%emt 0:00:11]} 5. c4 {[%emt 0:00:20]} O-O {[%emt 0:00:11]} 6. Qc2 {[%emt 0:01:03]} c6 {[%emt 0:02:30]} 7. O-O {[%emt 0:00:14]} a5 {[%emt 0:00:05]} 8. Bf4 {[%emt 0:02:16]} b6 {[%emt 0:12:09]} 9. Nbd2 {[%emt 0:03:15][%cal Bb1d2,Bd2e4,Be4c3,Bc3a4][%mdl 32]} Nbd7 {[%emt 0:03:39]} 10. e4 {[%emt 0:01:07]} Nh5 {[%emt 0:10:05]} 11. Be3 {[%emt 0:00:16][%cal Bf4e3,Be3g5,Bg5d2][%mdl 32]} dxe4 {[%emt 0:01:55]} (11... Nhf6 $14) 12. Nxe4 {[%emt 0:02:51]} Bb7 {[%emt 0:02:26]} 13. Rfd1 {[%emt 0:02:09]} Qc7 {[%emt 0:03:13]} 14. c5 {[%emt 0:02:33]} b5 {[%emt 0:02:31][%cal Bb6b5,Bb5b4][%mdl 32]} 15. Bg5 {[%emt 0:05:56]} Ndf6 {[%emt 0:04:40]} 16. Nc3 {[%emt 0:07:37]} h6 {[%emt 0:02:03]} 17. Bd2 {[%emt 0:00:22]} Rfd8 {[%emt 0:07:11]} 18. Re1 {[%emt 0:00:31][%cal Bd1e1,Be1e2,Be2f2][%mdl 32]} b4 {[%emt 0:10:36]} 19. Na4 {[%emt 0:00:36]} Nd5 {[%emt 0:00:29] Prevents Nb6.} 20. Ne5 {[%emt 0:00:41]} Nhf6 {[%emt 0:01:24]} 21. Bh3 {[%emt 0:04:02][%cal Oe5f7]} Bc8 {[%emt 0:02:25][%cal Bb7c8,Bc8d7,Bd7e8][%mdl 32]} 22. b3 {[%emt 0:09:11]} Bd7 {[%emt 0:00:37]} 23. Re2 {[%emt 0:03:50] White is much more active.} Be8 {[%emt 0:00:42]} 24. Rae1 {[%emt 0:00:18]} Nd7 {[%emt 0:01:13]} 25. Nc4 {[%emt 0:05:22]} N7f6 {[%emt 0:03:19]} 26. f4 {[%emt 0:04:58][%cal Bf2f4,Bf4g5][%mdl 32]} Bf8 {[%emt 0:03:50]} 27. Rf2 {[%emt 0:05:52]} Ra7 {[%emt 0:01:48]} 28. g4 {[%emt 0:04:15]} Ne7 {[%emt 0:14:00]} (28... g6 $1 $14 {was preferable.}) 29. g5 {[%emt 0:03:01]} ({White should try} 29. Nd6 $16) 29... hxg5 $2 {[%emt 0:00:55]} ({Better is} 29... Nfd5 $14) 30. fxg5 $18 {[%emt 0:00:10]} Nfd5 {[%emt 0:00:38] Prevents Bf4} 31. Qd3 {[%emt 0:08:01]} (31. Nab6 $18) 31... Ng6 {[%emt 0:00:48]} (31... g6 $16) 32. Qe4 {[%emt 0:06:02]} Qd7 {[%emt 0:03:19]} (32... Nc3 $16 33. Nxc3 bxc3) 33. Bg2 {[%emt 0:09:26]} ({Much less strong is} 33. Qxg6 $6 fxg6 34. Bxe6+ (34. Rxe6 $2 {is the wrong capture.} Nc7 $19) 34... Qxe6 35. Rxe6 Nc7 $16) (33. Bg4 $18) 33... Nge7 $2 {[%emt 0:01:15][%mdl 8192] [#]} (33... f5 $16 34. gxf6 (34. Qxe6+ Qxe6 35. Rxe6 Nc7 $18) 34... Nxf6 35. Qxe6+ Qxe6 36. Rxe6 Bf7 37. Rxc6 Nh4) 34. Ne5 $1 {[%emt 0:00:28]} (34. Nab6 Qc7 35. Qg4 Nf5 $16) 34... Qc8 {[%emt 0:01:35]} 35. Bh3 {[%emt 0:00:17][%cal Oe5f7,Bg2h3,Bh3f5,Bf5h7][%mdl 32] Hoping for Nxf7!. Prevents Nf5} (35. Nb6 Nxb6 36. cxb6 Rb7 $16) 35... Nf5 {[%emt 0:02:04]} 36. Rxf5 {[%emt 0:00:07]} ({Not} 36. Bxf5 exf5 37. Rxf5 (37. Qxf5 Qxf5 38. Rxf5 Re7 $16) 37... Re7 $16) 36... exf5 {[%emt 0:00:18]} 37. Bxf5 {[%emt 0:00:05]} Bd7 {[%emt 0:01:01]} 38. Bh7+ {[%emt 0:00:16]} Kh8 {[%emt 0:00:09]} 39. Qh4 {[%emt 0:00:01]} 1-0

[Event "29th Bosnjaci Open 2025"]
[Site "Bosnjaci"]
[Date "2025.01.04"]
[Round "2.8"]
[White "Pirvulescu, Ekaterina"]
[Black "Hadzovic, Amir"]
[Result "0-1"]
[ECO "B07"]
[WhiteElo "2043"]
[BlackElo "2316"]
[Annotator "TA"]
[PlyCount "100"]
[EventDate "2025.01.04"]
[EventType "swiss"]
[EventCountry "CRO"]
[SourceTitle "playchess.com"]
[Source "ChessBase"]
[SourceQuality "1"]
[TimeControl "5400+30"]

{[%evp 19,100,57,73,66,63,37,30,41,51,53,73,41,45,0,0,0,7,0,4,0,39,14,13,19,162,168,148,59,64,17,61,59,338,43,243,41,117,11,70,0,0,-81,-80,-82,-65,-84,-58,-443,-468,-462,-474,-414,-54,-63,0,0,0,-147,-165,-164,-160,-161,-148,-206,-212,-232,-172,-846,-852,-811,-696,-1123,-862,-3705,-2865,-4132,-3300,-4594,-4132,-1466,-1416,-913,-823]} 1. e4 {[%emt 0:00:17]} d6 {[%emt 0:00:22]} 2. d4 {[%emt 0:00:17]} Nf6 {[%emt 0:00:07]} 3. Nc3 {[%emt 0:00:11]} c6 {[%emt 0:00:04]} 4. f4 {[%emt 0:05:29]} Qa5 {[%emt 0:00:06]} 5. Bd2 {[%emt 0:05:04]} Qb6 {[%emt 0:00:56]} 6. Nf3 {[%emt 0:00:51]} Bg4 {[%emt 0:01:02]} 7. Bd3 {[%emt 0:06:47]} e5 {[%emt 0:10:34]} 8. dxe5 {[%emt 0:07:53]} dxe5 {[%emt 0:00:27]} 9. h3 {[%emt 0:02:45]} Bxf3 {[%emt 0:00:39]} 10. Qxf3 {[%emt 0:00:46]} Nbd7 {[%emt 0:00:14]} 11. O-O-O {[%emt 0:03:25]} Bd6 {[%emt 0:01:26]} 12. g4 {[%emt 0:07:31]} exf4 {[%emt 0:17:38]} 13. Bxf4 {[%emt 0:01:09]} Bxf4+ {[%emt 0:02:11]} 14. Qxf4 {[%emt 0:00:06]} Nc5 {[%emt 0:06:34]} 15. Qe5+ {[%emt 0:05:30]} Ne6 {[%emt 0:02:17]} 16. Bc4 {[%emt 0:04:56]} Qe3+ $1 {[%emt 0:02:14]} 17. Kb1 {[%emt 0:00:21]} Qc5 {[%emt 0:00:09]} 18. Qxc5 {[%emt 0:02:05]} (18. Bxe6 $2 Qxe5 19. Bb3 O-O $19 (19... Nxe4 $2 20. Nxe4 Rd8 21. Nd6+ Qxd6 22. Rxd6 $19)) 18... Nxc5 {[%emt 0:00:23]} 19. Rhe1 {[%emt 0:16:13]} Ke7 {[%emt 0:04:10]} 20. e5 {[%emt 0:01:42]} (20. b4 {simplifies} Ne6 21. Nd5+ cxd5 22. exd5 Rac8 23. Bb3) 20... Nfd7 {[%emt 0:13:22]} 21. Bxf7 {[%emt 0:01:17]} Rhf8 {[%emt 0:01:14]} (21... Kxf7 $2 22. e6+ Ke8 23. exd7+ Kd8 24. Rf1 $18) (21... Rad8 $11 {and Black has nothing to worry.} 22. e6 Nb6) 22. e6 $18 {[%emt 0:05:06]} Nb6 {[%emt 0:01:05]} 23. b4 {[%emt 0:01:36]} (23. Re5 $16 Na6 24. Rh5) 23... Na6 $14 {[%emt 0:00:53]} 24. a3 {[%emt 0:02:14]} (24. b5 $14 cxb5 25. Nd5+ (25. Nxb5 g6 $16) 25... Nxd5 26. Rxd5) 24... Rad8 {[%emt 0:00:21]} 25. Ne4 {[%emt 0:03:44]} Nc4 $2 {[%emt 0:03:53][%mdl 8192]} (25... Nc7 $1 $14) 26. Ka2 $2 {[%emt 0:04:46]} ({Only move:} 26. Ng3 $1 $18 Nxa3+ 27. Kb2 Nc4+ 28. Kc3 Rxd1 29. Nf5+ (29. Rxd1 Nd6 $18) 29... Kf6 30. Rxd1) 26... Nc7 $2 {[%emt 0:03:03] [#]} (26... Rd5 $1 $14) 27. Kb3 $2 {[%emt 0:04:03]} (27. Rd7+ $1 $18 Rxd7 28. exd7 Rxf7 29. Nd6+ Kxd7 30. Nxf7) 27... b5 {[%emt 0:02:13]} (27... Rxd1 $1 $14 28. Rxd1 Ne5) 28. Nc5 {[%emt 0:02:17]} (28. Rd7+ $16 Rxd7 29. exd7 Kxd7 (29... Kxf7 $2 30. Rf1+ Ke7 31. Rxf8 $18) (29... Nb6 $2 30. Nc5+ Kxf7 31. Rf1+ Ke7 32. Rxf8 $18) 30. Bxc4 bxc4+ 31. Kxc4) 28... Nd5 {[%emt 0:00:12]} (28... Rd5 $11) 29. h4 {[%emt 0:05:33]} ({White should try} 29. Nd7 $14 Rh8 (29... Rxf7 30. Ne5 $11) 30. a4) 29... a5 $11 {[%emt 0:03:04]} 30. bxa5 {[%emt 0:00:39]} (30. a4 $1 $11) 30... Nxa5+ $17 {[%emt 0:00:22]} 31. Kb2 {[%emt 0:00:45]} Ra8 {[%emt 0:00:47]} 32. a4 {[%emt 0:00:39]} Rfb8 {[%emt 0:01:43]} 33. axb5 $2 {[%emt 0:00:28][%mdl 8192]} (33. Rd4 $15) 33... Rxb5+ $19 {[%emt 0:00:18]} 34. Nb3 {[%emt 0:00:28]} Nc4+ {[%emt 0:00:11]} 35. Kc1 {[%emt 0:00:24] [#]} Rb7 $2 {[%emt 0:02:41]} ({Better is} 35... Rba5 $1 $19 {[%cal Ra5a1] ( -> ...Ra1+!)} 36. c3 (36. Nxa5 $2 Rxa5 37. c3 Ra1+ 38. Kc2 Nde3+ 39. Kb3 Nxd1 $19) 36... Ra1+ 37. Nxa1 Rxa1+ 38. Kc2 Nde3+ (38... Nce3+ 39. Kd2 $15) 39. Kb3 Nxd1 (39... Rxd1 40. Rxd1 Na5+ 41. Ka4 $17) 40. Rxd1 (40. Kxc4 $2 {is the wrong capture.} Nb2+ 41. Kb3 Rxe1 $19) 40... Rxd1 41. Kxc4 Kd6) 36. Re4 $15 {[%emt 0:00:35]} Nd6 {[%emt 0:06:40]} (36... Nde3 $1 $15 37. g5 (37. Rd3 $2 Rxb3 38. Rxb3 Ra1+ 39. Rb1 Rxb1+ 40. Kxb1 Nd2+ 41. Kb2 Nxe4 $19) 37... Nxd1 38. Rxc4 Ne3 39. Rxc6 Rd8) 37. Red4 $11 {[%emt 0:00:21]} Ra2 {[%emt 0:01:12]} 38. Rxd5 {[%emt 0:00:38]} (38. R1d3 $11 {keeps the balance.}) 38... cxd5 $17 {[%emt 0:00:30]} 39. Rxd5 {[%emt 0:00:09]} Nxf7 {[%emt 0:00:52]} 40. exf7 {[%emt 0:00:03]} Kxf7 {[%emt 0:00:05]} 41. Rf5+ {[%emt 0:00:16]} (41. Nd4 $17) 41... Kg8 $19 {[%emt 0:00:31]} 42. h5 {[%emt 0:01:22]} Rf7 {[%emt 0:00:31]} 43. Kb1 $2 {[%emt 0:00:44]} (43. Rc5) 43... Rxf5 $19 {[%emt 0:00:30]} 44. gxf5 {[%emt 0:00:27]} Ra4 {[%emt 0:00:08]} 45. c3 {[%emt 0:00:28]} Rh4 {[%emt 0:00:20]} 46. Nd4 {[%emt 0:00:20]} Rxh5 {[%emt 0:00:06]} 47. Kc2 {[%emt 0:00:19]} Kf7 {[%emt 0:00:30]} 48. c4 {[%emt 0:00:31]} Kf6 {[%emt 0:00:18]} 49. Kd3 {[%emt 0:00:50]} Ke5 {[%emt 0:00:36]} 50. Ne6 {[%emt 0:00:32]} g6 {[%emt 0:00:52]} 0-1

[Event "29th Bosnjaci Open 2025"]
[Site "Bosnjaci"]
[Date "2025.01.04"]
[Round "2.9"]
[White "Pehar, Borna"]
[Black "Bobanac, Miro"]
[Result "0-1"]
[ECO "B05"]
[WhiteElo "1954"]
[BlackElo "2157"]
[Annotator "RC"]
[PlyCount "76"]
[EventDate "2025.01.04"]
[EventType "swiss"]
[EventCountry "CRO"]
[SourceTitle "playchess.com"]
[Source "ChessBase"]
[SourceQuality "1"]
[TimeControl "5400+30"]

1. e4 {[%emt 0:02:10]} Nf6 {[%emt 0:00:03]} 2. e5 {[%emt 0:00:25]} Nd5 {[%emt 0:00:08]} 3. c4 {[%emt 0:00:51]} Nb6 {[%emt 0:00:13]} 4. d4 {[%emt 0:00:53]} d6 {[%emt 0:00:14]} 5. Nf3 {[%emt 0:01:51]} Bg4 {[%emt 0:03:25]} 6. h3 {[%emt 0:12:28]} Bh5 {[%emt 0:02:27]} 7. g4 {[%emt 0:14:32]} Bg6 {[%emt 0:00:39]} 8. Nc3 {[%emt 0:01:16]} e6 {[%emt 0:02:12]} 9. Bg5 {[%emt 0:10:33]} Be7 {[%emt 0:01:15]} 10. Bxe7 {[%emt 0:04:03]} Qxe7 {[%emt 0:00:19]} 11. h4 {[%emt 0:00:05]} h5 {[%emt 0:05:44]} 12. g5 {[%emt 0:03:23]} Nc6 {[%emt 0:02:00]} 13. exd6 {[%emt 0:03:19]} cxd6 {[%emt 0:00:36]} 14. Be2 {[%emt 0:00:09]} e5 {[%emt 0:08:49]} 15. d5 {[%emt 0:03:16]} Nb4 {[%emt 0:01:55]} 16. O-O {[%emt 0:07:24]} Qd7 {[%emt 0:04:23]} 17. Nh2 {[%emt 0:09:59]} Qh3 {[%emt 0:06:34]} 18. Nb5 {[%emt 0:07:54]} Rd8 {[%emt 0:06:44]} 19. Qd2 {[%emt 0:03:12]} Na6 {[%emt 0:12:31]} 20. a4 {[%emt 0:04:57]} Qxh4 {[%emt 0:04:15]} 21. a5 {[%emt 0:01:10]} Nc8 {[%emt 0:01:11]} 22. Ra3 {[%emt 0:03:09]} Nc5 {[%emt 0:06:16]} 23. f4 {[%emt 0:04:21]} exf4 {[%emt 0:05:24]} 24. Qxf4 {[%emt 0:00:10]} Qxf4 {[%emt 0:00:12]} 25. Rxf4 {[%emt 0:00:04]} O-O {[%emt 0:03:09]} 26. Rh3 {[%emt 0:01:23]} Ne4 {[%emt 0:02:14]} 27. Bxh5 {[%emt 0:00:32]} Nxg5 {[%emt 0:03:59]} 28. Rhh4 {[%emt 0:00:03]} Bxh5 {[%emt 0:03:54]} 29. Rxh5 {[%emt 0:00:10]} f6 {[%emt 0:00:16]} 30. Nd4 {[%emt 0:01:10]} Rfe8 {[%emt 0:00:35]} 31. Nhf3 {[%emt 0:00:30]} Nxf3+ {[%emt 0:01:05]} 32. Rxf3 {[%emt 0:00:04]} Re5 {[%emt 0:02:45]} 33. Rh4 {[%emt 0:00:55]} Ne7 {[%emt 0:01:49]} 34. Ne6 {[%emt 0:00:29]} Rc8 {[%emt 0:00:36]} 35. Rg4 {[%emt 0:00:38]} Nf5 {[%emt 0:00:18]} 36. Rxf5 {[%emt 0:00:31]} Rxf5 {[%emt 0:00:22]} 37. Rxg7+ {[%emt 0:00:03]} Kh8 {[%emt 0:00:09]} 38. Rxb7 {[%emt 0:00:53]} Rg8+ {[%emt 0:00:08]} 0-1